Cogmind - Beta 10.2 *** ADVENTURER MODE // 2021.03.16 @ 20:43:38 Player: hop Result: Destroyed by S-10 Pest with Light Assault Rifle Performance ------------- Evolutions (0) 0 Regions Visited (4) 800 Robots Destroyed (9) 45 Value Destroyed (53) 53 Prototype IDs (0) 0 Alien Tech Used (0) 0 Bonus (0) 0 TOTAL SCORE: 898 Bonus ------- None Cogmind --------- Core Integrity 0/250 Matter 300/300 Energy 100/100 System Corruption 0% Temperature Cool (0) Movement Core (50) Location -9/Mines Parts ------- > --- POWER (1) -------- (None) > --- PROPULSION (2) --- (None) > --- UTILITY (2) ------ Advanced Visual Processing Unit Seismic Analyzer > --- WEAPON (2) ------- (None) > --- INVENTORY (4) ---- Ion Engine Improved Terrain Scanner Medium Laser Small Laser Peak State ------------ > --- POWER ------------ Light Ion Engine > --- PROPULSION ------- Flight Unit Flight Unit > --- UTILITY ---------- Advanced Visual Processing Unit Seismic Analyzer > --- WEAPON ----------- Mining Laser Plasma Cutter > --- INVENTORY -------- Ion Engine Improved Terrain Scanner Medium Laser Small Laser [Rating: 10] Favorites ----------- Power Light Ion Engine Engine Light Ion Engine Propulsion Flight Unit Wheel Compact Wheel Flight Unit Flight Unit Utility Seismic Analyzer Device Improved Terrain Scanner Storage Small Storage Unit Processor Seismic Analyzer Weapon Small Laser Energy Gun Small Laser Ballistic Gun Light Assault Rifle Special Weapon Mining Laser Build | -11 -10 -10 -10 -9 ------- Run | Scr Mat Min Exi Min Slots Evolved . | . . . . . Power . | . . . . . Propulsion . | . . . . . Utility . | . . . . . Weapon . | . . . . . Parts Attached 17 | 11 . 5 . 1 Power 2 | 1 . 1 . . Engine 2 | 1 . 1 . . Core . | . . . . . Reactor . | . . . . . Propulsion 5 | 3 . 2 . . Treads . | . . . . . Leg . | . . . . . Wheel 3 | 3 . . . . Hover . | . . . . . Flight 2 | . . 2 . . Utility 5 | 4 . 1 . . Device 1 | 1 . . . . Storage 2 | 2 . . . . Processor 2 | 1 . 1 . . Hackware . | . . . . . Protection . | . . . . . Artifact . | . . . . . Weapon 5 | 3 . 1 . 1 Energy Gun 2 | 2 . . . . Energy Cannon . | . . . . . Ballistic Gun 1 | 1 . . . . Ballistic Cannon . | . . . . . Launcher . | . . . . . Special Weapon 2 | . . 1 . 1 Impact Weapon . | . . . . . Slashing Weapon . | . . . . . Piercing Weapon . | . . . . . Special Melee Weapon . | . . . . . Unidentified Prototypes . | . . . . . Parts Lost 5 | . . . . 5 Power 1 | . . . . 1 Propulsion 2 | . . . . 2 Utility . | . . . . . Weapon 2 | . . . . 2 Highest Loss Streak 5 | . . . . 5 Average Slot Usage (%) 95 | . 100 100 100 71 Engine 13 | . 14 14 14 8 Wheel 9 | . 28 8 . . Flight 17 | . . 19 28 19 Device 7 | . 14 12 . . Processor 20 | . 14 16 28 28 Energy Gun 16 | . 28 18 14 1 Special Weapon 9 | . . 10 14 12 Naked Turns . | . . . . . Heaviest Build 16 | 16 9 9 5 5 Greatest Support 32 | 32 32 32 8 8 Greatest Overweight (x) . | . . . . . Average Overweight (x) . | . . . . . Largest Inventory Capacity 8 | 8 4 4 4 4 Average Capacity 4 | 5 4 4 4 4 Most Carried 6 | 6 4 4 4 4 Average Carried 4 | 4 3 3 4 4 Final Capacity 4 | 4 4 4 4 4 Final Carried 4 | 4 4 4 4 4 Class Distribution -------------------- 82% | Mutant 17% | Scavenger-Mutant Dominant Class ---------------- Mutant | -10/Materials Scavenger-Mutant | -10/Mines Mutant | -10/Exiles Mutant | -9/Mines Resources | -11 -10 -10 -10 -9 ----------- Run | Scr Mat Min Exi Min Matter Collected 370 | 310 . 50 . 10 Remotely . | . . . . . Salvage Created 218 | 218 . . . . Parts 19 | 18 . . . 1 Haulers Intercepted . | . . . . . Recyclers Shooed . | . . . . . Parts Field Recycled . | . . . . . Retrieved Matter . | . . . . . Parts Self-Destructed . | . . . . . Prevented . | . . . . . Kills | -11 -10 -10 -10 -9 ------- Run | Scr Mat Min Exi Min Combat Hostiles Destroyed 1 | . . . . 1 Cannons 1 | . . . . 1 Classes Destroyed 4 | 3 . . . 1 Worker 2 | 2 . . . . Tunneler 5 | 5 . . . . Recycler 1 | 1 . . . . Swarmer 1 | . . . . 1 Best Kill Streak 6 | 6 . . . 1 Combat Bots Only 1 | . . . . 1 Max Kills in Single Turn 1 | 1 . . . 1 Gunslinging . | . . . . . Exploded . | . . . . . Melee . | . . . . . Uniques/NPCs Destroyed . | . . . . . Combat | -11 -10 -10 -10 -9 -------- Run | Scr Mat Min Exi Min Damage Taken 388 | . . . . 388 Core 252 | . . . . 252 Absorbed by Shields . | . . . . . Core Remaining (%) 100 | 100 . . . . Volleys Fired 17 | 15 . . . 2 Largest 2 | 2 . . . 1 Hottest 100 | 90 . . . 100 Shots Fired 32 | 30 . . . 2 Gun 30 | 30 . . . . Cannon . | . . . . . Launcher . | . . . . . Special 2 | . . . . 2 Kinetic . | . . . . . Thermal 32 | 30 . . . 2 Explosive . | . . . . . Electromagnetic . | . . . . . Robot Hit Streak 15 | 15 . . . 1 Robot Miss Streak 2 | 2 . . . 1 Penetration Max . | . . . . . Secondary Targets . | . . . . . Shots Hit Robots 25 | 24 . . . 1 Core Hits 10 | 9 . . . 1 Critical Hits . | . . . . . Critical Kills . | . . . . . Critical Parts Destroyed . | . . . . . Melee Attacks . | . . . . . Impact . | . . . . . Slashing . | . . . . . Piercing . | . . . . . Sneak Attacks . | . . . . . Combat Hostiles . | . . . . . Follow-up Attacks . | . . . . . Damage Inflicted 259 | 235 . . . 24 Guns 235 | 235 . . . . Cannons . | . . . . . Explosions . | . . . . . Melee . | . . . . . Ramming . | . . . . . Kinetic . | . . . . . Thermal 259 | 235 . . . 24 Explosive . | . . . . . Electromagnetic . | . . . . . Impact . | . . . . . Slashing . | . . . . . Piercing . | . . . . . Highest Corruption . | . . . . . Average Corruption . | . . . . . Corruption Purged . | . . . . . Overload Shots . | . . . . . Overflow Damage . | . . . . . Projectiles . | . . . . . Explosions . | . . . . . Melee . | . . . . . Knockbacks . | . . . . . Impact . | . . . . . Kinetic . | . . . . . Secondary . | . . . . . Self-Inflicted Damage . | . . . . . Shots . | . . . . . Rammed . | . . . . . Targets Rammed . | . . . . . Kicked . | . . . . . Crushed . | . . . . . Highest Temperature 90 | 90 . . . 58 Average Temperature 30 | 30 . . . 30 Received Heat Transfer 12 | . . . . 12 Siege Activations . | . . . . . Robots Corrupted . | . . . . . Combat Hostiles . | . . . . . Parts Fried . | . . . . . Impact Corruptions . | . . . . . Robots Melted . | . . . . . Combat Hostiles . | . . . . . Parts Melted 1 | 1 . . . . Heat Transferred 646 | 596 . . . 50 Parts Sabotaged . | . . . . . Parts Stolen . | . . . . . Parts Stripped . | . . . . . Power Chain Reactions . | . . . . . Missiles Intercepted . | . . . . . Alert | -11 -10 -10 -10 -9 ------- Run | Scr Mat Min Exi Min Peak Influence 40 | 40 22 7 . 40 Initial 22 | . 22 7 . . Average 14 | 16 22 7 . 16 Maximum Alert Level . | . . . . . Low Security (%) 100 | 100 100 100 . 100 Level 1 . | . . . . . Level 2 . | . . . . . Level 3 . | . . . . . Level 4 . | . . . . . Level 5 . | . . . . . High Security . | . . . . . Max Security . | . . . . . Squads Dispatched 2 | . 1 1 . . Investigation 2 | . 1 1 . . Extermination . | . . . . . Reinforcement . | . . . . . Assault . | . . . . . Garrison . | . . . . . Intercept . | . . . . . Construction Impeded . | . . . . . Haulers Reinforced . | . . . . . Stealth | -11 -10 -10 -10 -9 --------- Run | Scr Mat Min Exi Min Distress Signals 2 | . 2 . . . Communications Jammed . | . . . . . Distress Signals . | . . . . . Times Spotted 8 | . . . . 8 Peak Tracking Total 7 | . . . . 7 Tactical Retreats 3 | . . . . 3 Traps | -11 -10 -10 -10 -9 ------- Run | Scr Mat Min Exi Min Traps Triggered . | . . . . . Indirectly . | . . . . . Trap Hack Attempts . | . . . . . Triggered . | . . . . . Disarmed . | . . . . . Reprogrammed . | . . . . . Reused . | . . . . . Traps Extracted . | . . . . . Installed . | . . . . . Triggered . | . . . . . Machines | -11 -10 -10 -10 -9 ---------- Run | Scr Mat Min Exi Min Machines Disabled . | . . . . . Max in Single Turn . | . . . . . Machines Sabotaged . | . . . . . Garrisons Compromised . | . . . . . Overloaded Fab Kills . | . . . . . Fab Network Shutdowns . | . . . . . Hacking | -11 -10 -10 -10 -9 --------- Run | Scr Mat Min Exi Min Machines Accessed 1 | . . 1 . . Terminals . | . . . . . Fabricators . | . . . . . Repair Stations . | . . . . . Recycling Units . | . . . . . Scanalyzers . | . . . . . Garrison Access . | . . . . . Total Hacks 1 | . . 1 . . Successful 1 | . . 1 . . Failed . | . . . . . Catastrophic . | . . . . . Database Lockouts . | . . . . . Manual . | . . . . . Terminals . | . . . . . Fabricators . | . . . . . Repair Stations . | . . . . . Recycling Units . | . . . . . Scanalyzers . | . . . . . Garrison Access . | . . . . . Terminal Hacks 1 | . . 1 . . Open Door 1 | . . 1 . . Fabricator Hacks . | . . . . . Repair Station Hacks . | . . . . . Recycling Unit Hacks . | . . . . . Scanalyzer . | . . . . . Garrison Access Hacks . | . . . . . Unauthorized Hacks . | . . . . . Terminals . | . . . . . Fabricators . | . . . . . Repair Stations . | . . . . . Recycling Units . | . . . . . Scanalyzers . | . . . . . Garrison Access . | . . . . . Data Cores Recovered . | . . . . . Used . | . . . . . Hacking Detections . | . . . . . Full Trace Events . | . . . . . Feedback Events . | . . . . . Feedback Blocked . | . . . . . Robot Schematics Acquired . | . . . . . Robots Built . | . . . . . Matter . | . . . . . Time . | . . . . . Total Robot Build Rating . | . . . . . Part Schematics Acquired . | . . . . . Parts Built . | . . . . . Matter . | . . . . . Time . | . . . . . Total Part Build Rating . | . . . . . Parts Repaired . | . . . . . Time . | . . . . . Parts Recycled . | . . . . . Recycled Matter . | . . . . . Retrieved Matter . | . . . . . Retrieved Components . | . . . . . Parts Scanalyzed . | . . . . . Part Schematics Acquired . | . . . . . Parts Damaged . | . . . . . Bothacking | -11 -10 -10 -10 -9 ------------ Run | Scr Mat Min Exi Min Used RIF Installer . | . . . . . Robots Hacked . | . . . . . Non-combat . | . . . . . Combat . | . . . . . Robot Hacks Applied . | . . . . . Relay Couplers Released . | . . . . . Robots Rewired . | . . . . . Allies Hacked . | . . . . . Hacks Repelled . | . . . . . Allies | -11 -10 -10 -10 -9 -------- Run | Scr Mat Min Exi Min Total Allies 1 | . . 1 . . Largest Group 1 | . . 1 . . Highest-Rated Group 31 | . . 31 . . Highest-Rated Ally 31 | . . 31 . . Total Orders . | . . . . . Ally Attacks . | . . . . . Total Damage . | . . . . . Kills . | . . . . . Allies Corrupted . | . . . . . Allies Melted . | . . . . . Intel | -11 -10 -10 -10 -9 ------- Run | Scr Mat Min Exi Min Robot Analysis Total . | . . . . . Derelict Logs Recovered 2 | . . 1 . 1 Drone Launches . | . . . . . Drone Recoveries . | . . . . . Exploration | -11 -10 -10 -10 -9 ------------- Run | Scr Mat Min Exi Min Turns Passed 891 | 198 148 273 161 111 Spaces Moved 1240 | 130 41 513 432 124 Core 5 | 5 . . . . Treads . | . . . . . Legs . | . . . . . Wheels 233 | 125 41 67 . . Hover . | . . . . . Flight 1002 | . . 446 432 124 Fastest Speed 37 | 50 100 37 37 37 Average Speed 48 | 96 100 45 37 37 Slowest Speed 100 | 100 100 100 37 37 Overloaded Moves . | . . . . . Propulsion Burnouts . | . . . . . Robots Hopped 14 | . . 14 . . Cave-ins Triggered . | . . . . . Exploration Rate (%) 40 | 6 10 83 80 24 Regions Visited 4 Branch Regions 3 Pre-discovered Areas . | . . . . . Known Exits Taken . | . . . . . Unknown Exits Taken 4 | 1 1 1 1 . Scrap Searched 1 | . . . . 1 Spaces Dug . | . . . . . Terrain Destroyed . | . . . . . Melee . | . . . . . Projectile . | . . . . . AOE . | . . . . . Terrain Rammed . | . . . . . Walls Destroyed . | . . . . . Machines Disabled . | . . . . . Actions | -11 -10 -10 -10 -9 --------- Run | Scr Mat Min Exi Min Total 1473 | 172 148 538 432 183 Wait 188 | . 106 27 1 54 Move 1208 | 129 40 484 431 124 Hop 14 | . . 14 . . Pick Up 20 | 14 1 4 . 1 Fast Attach . | . . . . . Attach 7 | 7 . . . . Detach . | . . . . . Swap 10 | 4 . 5 . 1 Drop 9 | 3 1 4 . 1 Fire 17 | 15 . . . 2 Melee . | . . . . . Ram . | . . . . . Kick . | . . . . . Crush . | . . . . . Escape Stasis . | . . . . . Rewire . | . . . . . Trap . | . . . . . Miscellaneous . | . . . . . Route ------- -11/Scrapyard -10/Materials -10/Mines (discovered 2 exits: [*Mat] / [*Exi]) -10/Exiles (discovered 2 exits: [*Min x2]) -9/Mines History --------- Turn | Location | Event 14 | -11/Scrapyard | Discovered new exit (range 16) 199 | -11/Scrapyard | Entered Materials 330 | -10/Materials | Build established: Mutant 333 | -10/Materials | Met 8R-AWN 342 | -10/Materials | Discovered new exit (range 6) 347 | -10/Materials | Entered Mines 348 | -10/Mines | Followed 8R-AWN into the Mines 350 | -10/Mines | Received a Mining Laser from a helpful Derelict 401 | -10/Mines | Learned Materials non-interactive machine intel 516 | -10/Mines | Discovered new exit (range 16) 535 | -10/Mines | Discovered new exit (range 5) 576 | -10/Mines | Met a Derelict shopkeep closing up shop 620 | -10/Mines | Entered Exiles 625 | -10/Exiles | Discovered new exit (range 18) 630 | -10/Exiles | Welcomed by 8R-AWN 637 | -10/Exiles | Met EX-HEX 657 | -10/Exiles | Met EX-DEC 690 | -10/Exiles | Discovered new exit (range 10) 719 | -10/Exiles | Visited The Gauntlet 781 | -10/Exiles | Entered Mines 869 | -9/Mines | Core integrity fell below 50% 884 | -9/Mines | Core integrity fell below 20% 892 | -9/Mines | Destroyed by S-10 Pest with Light Assault Rifle Last Messages --------------- 00792_ Found 30 Matter. 00792_ Found 14 Matter. 00793_ Dropped Lgt. Assault Rifle. 00793_ Acquired Plasma Cutter. 00796_ Acquired 10 matter. 00823_ Acquired derelict log, extracted data. Data stored: Recycling entrances (x1). 00836_ Plasma Cutter destroyed. 00842_ S-10 Pest destroyed. 00847_ Mining Laser destroyed. 00850_ S-10 Pest destroyed. 00852_ Lgt. Ion Engine destroyed. 00854_ Flight Unit destroyed. [Achievement: Back For More] The achievement interface (ESC then open Records) offers an effective way to explore all of your earned achievements as well as seek out new goals for future runs. Important note for Steam players: Cogmind player global achievement rates displayed by Steam are all significantly underreported, in some cases by a huge margin, due to how they are calculated by Valve. Map ----- +----------------------------------------------------+ | | | | | | | | | | | | | | | | | | | | | ?????????????????????????????????????????????????? | | ???????###???????????????????????????????????????? | | ?????## ##??????????????????????????????????????? | | ????## #??????####????????????????????????????? | | ???## #?????## ##?????????###???????????????? | | ???# ##????## #????????? ##??????????????? | | #### #?????# #???????? ##?????????????? | | ##?????# #???????? ??????????????? | | ##??????# ##?????? ???????????????? | | ######??????## ##????? ????????????????? | | #??????????## #???? #?????????????????? | | #?????????## #???? #??????????????????? | | #????????## #??? ##?????????????????? | | #????##### g #### #?????????????????? | | #???## ## % s #?????????????????? | | #???# #### u *@ s ##?????????????????? | | ##### #####??## ##??????????????????? | | ### ##???????##### ##???????????????????? | | #?# ##????????????## ##????????????????????? | | ### #?# #############??####?????????????????????? | | ??# #?# #???????????????????????????? | | ??# #?############# #???????????????????????????? | | ??#$ #?????????????# #???????????????????????????? | | ?## #?????????????# #???????????????????????????? | | ## ############### #############???????????????? | | # #????????????? | | #????????????? | | ## ######################## #????????????? | | ### #??????????????????????????????????????? | | ##?# #??????????????????????????????????????? | | ##??# ??????????????????????????????????????? | | #####???###??????????????????????????????????????? | | ?????????????????????????????????????????????????? | | ?????????????????????????????????????????????????? | | ?????????????????????????????????????????????????? | | ?????????????????????????????????????????????????? | | ?????????????????????????????????????????????????? | | ?????????????????????????????????????????????????? | | ?????????????????????????????????????????????????? | | ?????????????????????????????????????????????????? | +----------------------------------------------------+ Best States ------------- Heat Dissipation 25 Energy Generation 10 Energy Capacity 250 Matter Stores 300 Matter Capacity 300 Sight Range 20 Terrain Scan Range 16 Terrain Scan Density 60 Resistance: KI 20 Resistance: TH 20 Resistance: EX 20 Resistance: EM 20 Resistance: I 20 Resistance: S 20 Resistance: P 20 Evasion (%) 62 Offensive Hacking 10 Item Schematics ----------------- None Robot Schematics ------------------ None Fabricated ------------ Nothing Alien Tech Used ----------------- None Achievements -------------- Back For More Challenges ------------ None Game ------ Seed TeslaMagneticSabre Manual? 0 Play Time 00:15:28 Cumulative 28.2 hours Start 2021.03.16 @ 20:23:38 End 2021.03.16 @ 20:43:38 Sessions 1 Manual Loads 0 Difficulty Adventurer Special Mode None Game No. 50 Rogue 43 Adventurer 4 Explorer 3 Win Type - Total 0 Types 0/0/0/0/0/0/0/0/0 Lore% 13 Gallery% 27 Achievement% 23 Wizard Run 0 Options --------- ASCII 0 Keyboard 0 Movement Numpad Keybinds 0 Fullscreen 1 Font 18/SmallcapsGlow Map View 76x50 Tactical HUD 1 Map Filters NONE Filters NONE Steam 1 RUN: fd914390-a649-4e0d-b813-0ea11da81b0b